bitfinex-derivatives/quotes_SOLF0:USTF0_20241107
["timestamp","ask_amount","ask_price","bid_price","bid_amount"]
[1730997444146,21.37239022,193.49,193.37,3.68]
[1730997444455,19.86589022,193.52,193.37,23.54589022]
[1730997445145,4.144,193.55,193.4,19.86589022]
[1730997445549,1.5634,193.55,193.4,19.86589022]
[1730997446747,1.5634,193.55,193.49,2.5813]
[1730997446949,1.5634,193.55,193.49,6.2613]
[1730997447352,1.5634,193.55,193.4,19.86589022]
[1730997447558,4.144,193.55,193.48,2.5814]
[1730997447748,4.144,193.55,193.48,6.2614]
[1730997447944,1.5634,193.55,193.48,3.68]
[1730997448145,1.5634,193.55,193.49,2.5813]
[1730997448458,1.5036,193.57,193.49,2.5813]
[1730997448652,1.5036,193.57,193.48,3.68]
[1730997449857,1.5036,193.57,193.49,2.5813]
[1730997450656,19.86589022,193.62,193.53,2.5808]
[1730997450851,22.44559022,193.62,193.49,19.86589022]
[1730997451249,3.2397,193.64,193.49,19.86589022]
[1730997451859,5.8192,193.64,193.57,2.5802]
[1730997452062,5.8192,193.64,193.57,3.68]
[1730997452462,4.1282,193.65,193.59,2.58]
[1730997452960,1.549,193.65,193.57,3.68]
[1730997453256,1.549,193.65,193.57,6.2602]
[1730997453257,2.5795,193.63,193.57,6.2602]
[1730997453558,2.5795,193.63,193.44,1.525]
[1730997453559,19.86589022,193.61,193.44,1.525]
[1730997453762,19.86589022,193.61,193.46,19.86589022]
[1730997453966,19.86589022,193.61,193.47,3.68]
[1730997454159,19.86589022,193.61,193.48,3.68]
[1730997454359,19.86589022,193.58,193.48,3.68]
[1730997454756,2.5806,193.55,193.48,3.68]
[1730997455058,19.86589022,193.58,193.48,3.68]
[1730997455467,2.5805,193.55,193.5,2.5812]
[1730997455659,1.5701,193.59,193.48,3.68]
[1730997456061,1.6056,193.6,193.48,3.68]
[1730997456661,1.6056,193.6,193.53,2.5808]
[1730997457055,19.86589022,193.61,193.48,3.68]
[1730997457855,22.44579022,193.61,193.53,2.5807]
[1730997458064,19.86589022,193.61,193.53,2.5807]
[1730997458255,19.86589022,193.61,193.48,3.68]
[1730997458868,1.6157,193.63,193.49,19.86589022]
[1730997459060,1.6157,193.63,193.56,2.5803]
[1730997459261,1.6157,193.63,193.45,0.6316]
[1730997459262,1.6157,193.63,193.54,3.68]
[1730997459758,2.5797,193.62,193.54,3.68]
[1730997459963,19.86589022,193.64,193.54,3.68]
[1730997460366,1.5522,193.63,193.54,3.68]
[1730997460569,3.089,193.63,193.54,3.68]
[1730997461173,2.5799,193.61,193.54,3.68]
[1730997461565,2.5799,193.61,193.46,22.44731159]
[1730997461765,2.5799,193.6,193.47,3.68]
[1730997461964,19.86589022,193.61,193.47,3.68]
[1730997462166,2.5804,193.57,193.51,2.581]
[1730997462368,2.5804,193.57,193.5,3.68]
[1730997462566,19.86589022,193.61,193.5,3.68]
[1730997462767,2.58,193.6,193.54,2.5806]
[1730997463470,2.5796,193.62,193.56,2.5804]
[1730997463869,3.089,193.63,193.5,3.68]
[1730997464064,3.089,193.63,193.51,3.68]
[1730997464571,19.86589022,193.6,193.49,3.68]
[1730997464771,2.5805,193.56,193.51,2.581]
[1730997464971,19.86589022,193.6,193.49,3.68]
[1730997465472,2.5805,193.56,193.5,2.5811]
[1730997466568,22.44669022,193.54,193.48,2.5815]
[1730997467073,22.44669022,193.54,193.49,2.5813]
[1730997467471,19.86589022,193.54,193.46,0.18939]
[1730997467675,19.86589022,193.54,193.48,2.5814]
[1730997467676,5.6503,193.53,193.48,2.5814]
[1730997468569,5.6503,193.53,193.46,0.18939]
[1730997468769,5.6503,193.53,193.49,2.5813]
[1730997469578,5.6503,193.53,193.46,0.18939]
[1730997469881,2.5811,193.51,193.46,0.18939]
[1730997470271,2.5811,193.51,193.47,2.5815]
[1730997470671,3.0694,193.53,193.47,2.5815]
[1730997470869,2.581,193.52,193.47,2.5815]
[1730997471469,2.581,193.52,193.46,0.18939]
[1730997472078,2.581,193.52,193.47,2.5816]
[1730997472875,2.5811,193.51,193.47,2.5816]
[1730997473177,3.0694,193.53,193.48,2.5815]
[1730997473581,5.6503,193.53,193.48,2.5815]
[1730997474186,2.581,193.52,193.48,2.5815]
[1730997476477,2.581,193.52,193.48,2.5814]
[1730997477184,2.5811,193.51,193.48,2.5814]
[1730997477381,2.5811,193.51,193.47,2.5816]
[1730997477785,3.0694,193.53,193.47,2.5816]
[1730997478178,3.0694,193.53,193.48,2.5814]
[1730997478378,3.0694,193.53,193.42,16.05491291]
[1730997478774,3.0694,193.53,193.49,2.5813]
[1730997479493,4.2162,193.55,193.51,2.581]
[1730997479696,4.2162,193.55,193.47,12.39491291]
[1730997479697,1.6356,193.55,193.48,3.66]
[1730997480089,2.5808,193.54,193.5,2.5811]
[1730997480497,1.6356,193.55,193.48,3.66]
[1730997480697,2.5809,193.53,193.48,3.66]
[1730997481796,2.5809,193.53,193.49,2.5812]
[1730997481996,1.6356,193.55,193.48,3.66]
[1730997482495,12.39491291,193.53,193.43,3.66]
[1730997483088,12.39491291,193.53,193.42,12.39491291]
[1730997483089,2.5811,193.51,193.46,2.5817]
[1730997483494,12.39491291,193.53,193.48,2.5814]
[1730997483697,1.6356,193.55,193.44,12.39491291]
[1730997484198,4.2162,193.55,193.44,12.39491291]
[1730997484395,1.6356,193.55,193.44,12.39491291]
[1730997484593,1.6356,193.55,193.49,2.5813]
[1730997484802,1.6356,193.55,193.48,3.66]
[1730997485302,4.2162,193.55,193.48,3.66]
[1730997485498,14.03051291,193.55,193.48,3.66]
[1730997485894,14.03051291,193.55,193.48,6.2414]
[1730997486096,14.03051291,193.55,193.48,3.66]
[1730997486292,14.03051291,193.55,193.48,6.2415]
[1730997486497,14.03051291,193.55,193.44,12.39491291]
[1730997486805,2.581,193.52,193.42,3.66]
[1730997487196,1.6356,193.55,193.44,12.39491291]
[1730997487398,1.6356,193.55,193.5,2.5812]
[1730997487998,14.03051291,193.55,193.5,2.5812]
[1730997488293,2.5809,193.53,193.48,2.5814]
[1730997488498,14.03051291,193.55,193.44,16.05491291]
[1730997489000,1.6356,193.55,193.47,12.39491291]
[1730997489598,1.6356,193.55,193.54,2.5807]
[1730997489802,13.95241291,193.6,193.54,2.5807]
[1730997490103,16.53231291,193.6,193.55,2.5805]
[1730997490703,13.95241291,193.6,193.56,2.5803]
[1730997491406,13.95241291,193.6,193.51,12.39491291]
[1730997491603,13.95241291,193.6,193.57,2.5802]
[1730997492795,2.61242714,193.67,193.53,12.39491291]
[1730997493103,12.39491291,193.67,193.61,2.5797]
[1730997493299,14.91926774,193.67,193.56,12.39491291]
[1730997494300,7.02,193.66,193.56,12.39491291]
[1730997494699,7.02,193.66,193.62,2.5795]
[1730997495004,7.02,193.66,193.56,12.39491291]
[1730997495210,7.02,193.66,193.63,2.5794]
[1730997495501,6.34,193.65,193.56,12.39491291]
[1730997495700,6.34,193.65,193.61,2.5797]
[1730997495701,13.0492,193.65,193.61,2.5797]
[1730997497902,4.13,193.64,193.61,2.5797]
[1730997498509,2.64,193.63,193.61,2.5797]
[1730997498908,5.2196,193.63,193.58,2.5801]
[1730997499304,2.64,193.63,193.54,3.66]
[1730997500810,2.64,193.63,193.59,2.5799]
[1730997501012,2.64,193.63,193.54,3.66]
[1730997501510,2.64,193.63,193.56,12.39491291]
[1730997502108,2.64,193.63,193.62,2.5796]
[1730997503119,0.7352,193.63,193.62,2.5796]
[1730997503313,2.2852,193.64,193.63,2.5795]
[1730997503713,2.2852,193.64,193.63,14.97441291]
[1730997507113,2.2852,193.64,193.63,2.5795]
[1730997508915,2.2852,193.64,193.63,6.2395]
[1730997511021,8.3352,193.64,193.63,6.2395]
[1730997511824,8.3352,193.64,193.63,2.5795]
[1730997512125,6.05,193.64,193.62,2.5796]
[1730997512529,15.48,193.61,193.34,2.2997928]
[1730997512728,12.39491291,193.49,193.4,12.39491291]
[1730997513024,2.5817,193.47,193.39,2.5826]
[1730997513223,1.5392,193.48,193.39,2.5826]
[1730997513421,1.5392,193.48,193.37,12.39491291]
[1730997513627,12.39491291,193.46,193.34,12.39491291]
[1730997514229,3.66,193.46,193.37,14.97781291]
[1730997514429,3.66,193.46,193.3,13.84611291]
[1730997514430,1.5392,193.48,193.4,12.39491291]
[1730997514924,1.5392,193.48,193.4,14.97731291]
[1730997515436,1.5392,193.48,193.4,2.5824]
[1730997515822,1.5392,193.48,193.41,2.5824]
[1730997516224,4.13,193.47,193.41,2.5824]
[1730997516432,0.13,193.47,193.42,2.5822]
[1730997516638,0.13,193.47,193.38,19.83594115]
[1730997516827,0.13,193.47,193.44,19.83594115]
[1730997517129,2.5806,193.55,193.44,19.83594115]
[1730997518129,1.4479,193.56,193.44,19.83594115]
[1730997518731,4.13,193.55,193.49,2.5813]
[1730997518923,4.13,193.55,193.44,19.83594115]
[1730997520744,4.13,193.55,193.53,2.5808]
[1730997522830,19.83594115,193.5,193.33,19.83594115]
[1730997523035,19.83594115,193.5,193.34,6.04171771]
[1730997523227,2.5819,193.45,193.35,4.74982697]
[1730997523429,2.5819,193.45,193.33,23.49594115]
[1730997523629,8.05,193.44,193.34,6.03276722]
[1730997523930,8.05,193.44,193.33,23.49594115]
[1730997524433,8.05,193.44,193.34,4.74095059]
[1730997524635,8.05,193.44,193.33,23.49594115]
[1730997524832,8.05,193.44,193.34,4.74112551]
[1730997525030,8.05,193.44,193.33,23.49594115]
[1730997525634,8.05,193.44,193.4,19.83594115]
[1730997525935,3.2519,193.44,193.43,19.83594115]
[1730997526136,4.13,193.49,193.43,23.49594115]
[1730997527838,8.68,193.48,193.46,2.5817]
[1730997528037,15.98,193.48,193.46,2.5817]
[1730997528542,15.98,193.48,193.47,2.5816]
[1730997529137,15.98,193.48,193.43,3.66]
[1730997529337,15.98,193.48,193.44,2.5819]
[1730997529539,15.98,193.48,193.43,3.66]
[1730997530038,15.98,193.48,193.45,2.5818]
[1730997531447,4.13,193.47,193.45,2.5818]
[1730997531947,4.13,193.47,193.46,2.5817]
[1730997533847,4.13,193.47,193.34,54.29032345]
[1730997534047,4.13,193.47,193.45,2.5818]
[1730997534455,4.13,193.47,193.41,3.66]
[1730997534746,4.13,193.47,193.46,2.5817]
[1730997535543,12.0,193.29,193.1,60.58411776]
[1730997535761,19.83594115,193.32,193.17,19.83594115]
[1730997535947,2.92,193.31,193.18,6.0428529]
[1730997536148,2.92,193.31,193.17,19.83594115]
[1730997536347,2.92,193.31,193.2,19.83594115]
[1730997536544,2.92,193.31,193.2,22.41998014]
[1730997536752,0.92,193.31,193.2,22.41998014]
[1730997537047,0.92,193.31,193.21,3.66]
[1730997537257,0.92,193.31,193.27,2.5843]
[1730997537445,0.92,193.31,193.27,3.66]
[1730997539255,0.92,193.31,193.11,1.8971]
[1730997539453,0.92,193.31,193.17,19.83594115]
[1730997539754,0.92,193.31,193.24,2.5846]
[1730997539951,0.92,193.31,193.19,4.73800015]
[1730997540151,0.92,193.31,193.21,19.83594115]
[1730997540347,1.4186,193.34,193.21,19.83594115]
[1730997540548,19.83594115,193.38,193.21,19.83594115]
[1730997540753,21.39184115,193.41,193.24,19.83594115]
[1730997540952,21.39184115,193.41,193.28,19.83594115]
[1730997541354,2.5827,193.4,193.33,2.5834]
[1730997541551,21.39184115,193.41,193.33,3.66]
[1730997541952,2.9641,193.4,193.33,3.66]
[1730997542552,2.5829,193.38,193.25,19.83594115]
[1730997542746,2.5829,193.38,193.26,3.66]
[1730997542953,5.76,193.39,193.26,3.66]
[1730997543445,2.5831,193.36,193.3,2.5838]
[1730997543647,2.5831,193.36,193.26,3.66]
[1730997544751,2.5831,193.36,193.29,2.584]
[1730997545851,5.76,193.39,193.26,3.66]
[1730997546049,4.13,193.38,193.26,3.66]
[1730997546259,4.13,193.38,193.28,19.83594115]
[1730997546759,4.13,193.38,193.31,19.83594115]
[1730997547059,4.13,193.38,193.32,3.66]
[1730997547248,4.13,193.38,193.37,2.583]
[1730997548461,4.13,193.38,193.32,3.66]
[1730997549153,4.13,193.38,193.37,2.583]
[1730997549467,4.13,193.38,193.32,3.66]
[1730997550161,4.13,193.38,193.31,19.83594115]
[1730997550358,4.13,193.38,193.36,2.583]
[1730997550862,4.13,193.38,193.31,19.83594115]
[1730997551058,4.13,193.38,193.36,6.2431]
[1730997551251,4.13,193.38,193.35,3.66]
[1730997551458,4.13,193.38,193.34,3.66]
[1730997552271,4.13,193.38,193.36,2.583]
[1730997552569,4.13,193.38,193.18,15.52]
[1730997552570,19.83594115,193.36,193.11,19.83594115]
[1730997552758,19.83594115,193.26,193.12,6.01663538]
[1730997552958,19.83594115,193.26,193.12,1.29273471]
[1730997553261,2.5846,193.25,193.1,6.21435533]
[1730997553565,1.4856,193.24,193.11,25.84935403]
[1730997553761,1.4856,193.24,193.15,2.5858]
[1730997553962,1.4856,193.24,193.11,19.83594115]
[1730997554157,4.14,193.23,193.12,4.72032028]
[1730997554353,4.14,193.23,193.11,19.83594115]
[1730997554864,6.7248,193.23,193.12,3.66]
[1730997555063,23.97594115,193.23,193.14,2.586]
[1730997555259,19.83594115,193.19,193.07,3.66]
[1730997555458,19.83594115,193.19,193.06,3.66]
[1730997556262,19.83594115,193.19,193.07,4.71405818]
[1730997556661,19.83594115,193.19,193.06,1.29342994]
[1730997556662,7.26,193.18,193.06,8.37405818]
[1730997557165,7.26,193.18,193.11,2.5864]
[1730997557367,7.26,193.18,193.06,3.66]
[1730997557555,1.4829,193.17,193.06,8.36866536]
[1730997558060,1.4829,193.17,193.09,2.5867]
[1730997558267,1.4829,193.17,193.06,8.36866536]
[1730997558462,1.4829,193.17,193.06,3.66]
[1730997558964,1.4829,193.17,193.11,2.5863]
[1730997559969,1.4829,193.17,193.06,8.36382369]
[1730997560168,1.4829,193.17,193.06,3.66]
[1730997560362,1.4829,193.17,193.08,19.83594115]
[1730997560766,1.4829,193.17,193.16,2.5858]
[1730997560971,7.26,193.18,193.08,19.83594115]
[1730997561171,7.26,193.18,193.16,2.5856]
[1730997561374,7.26,193.18,193.08,19.83594115]
[1730997562570,7.26,193.18,193.11,2.5864]
[1730997562768,7.26,193.18,193.12,3.66]
[1730997563871,7.26,193.18,193.17,2.5856]
[1730997567967,11.4,193.18,193.17,2.5856]
[1730997570363,19.59,193.18,193.17,2.5856]
[1730997572778,23.73,193.18,193.17,2.5856]
[1730997577279,23.73,193.18,193.17,14.99850907]
[1730997578378,23.73,193.18,193.17,18.65850907]
[1730997580177,23.73,193.18,193.17,2.5856]
[1730997583275,23.73,193.18,193.01,2.2997928]
[1730997583480,23.73,193.18,193.06,12.41290907]
[1730997583680,1.409,193.17,193.06,12.41290907]
[1730997584987,1.409,193.17,193.1,2.5864]
[1730997585287,3.99122919,193.17,193.06,12.41290907]
[1730997585581,1.409,193.17,193.1,2.5864]
[1730997585785,1.409,193.17,193.09,12.41290907]
[1730997586172,1.409,193.17,193.13,2.5861]
[1730997586578,4.14,193.16,193.12,12.41290907]
[1730997587076,4.14,193.16,193.15,2.5858]
[1730997588086,4.14,193.16,193.12,2.5863]
[1730997588483,6.19,193.15,193.07,19.87048893]
[1730997589685,6.19,193.15,193.09,2.5866]
[1730997589883,6.19,193.15,193.07,19.87048893]
[1730997590282,6.19,193.15,193.1,2.5864]
[1730997590680,6.19,193.15,193.07,19.87048893]
[1730997590879,8.7759,193.15,193.08,2.5868]
[1730997592879,2.5862,193.13,193.07,19.87048893]
[1730997593084,6.19,193.15,193.04,19.87048893]
[1730997593489,6.19,193.15,193.1,2.5865]
[1730997593982,6.19,193.15,193.04,19.87048893]
[1730997594177,6.19,193.15,193.07,19.87048893]
[1730997596480,6.19,193.15,193.09,2.5866]
[1730997597184,8.776,193.15,193.07,19.87048893]
[1730997597585,4.14,193.14,193.08,2.5868]
[1730997597783,6.7261,193.14,193.04,19.87048893]
[1730997598088,6.7261,193.14,193.04,23.53048893]
[1730997598382,6.7261,193.14,193.08,2.5868]
[1730997600086,5.89,193.13,193.08,2.5868]
[1730997600678,5.89,193.13,193.04,23.53048893]
[1730997600984,5.89,193.13,193.05,4.70972877]
[1730997601197,5.89,193.13,193.04,23.53048893]
[1730997601380,5.89,193.13,193.05,4.71297362]
[1730997601586,5.89,193.13,193.04,23.53048893]
[1730997601883,5.89,193.13,193.11,2.5863]
[1730997602483,5.89,193.13,193.05,1.29358047]
[1730997602682,5.89,193.13,193.12,2.5863]
[1730997604688,3.6151,193.13,193.12,2.5863]
[1730997604981,4.14,193.16,193.13,2.5862]
[1730997605187,2.7922,193.24,193.15,19.87048893]
[1730997605386,0.30103,193.25,193.16,3.66]
[1730997605790,0.30103,193.25,193.18,19.87048893]
[1730997605993,0.30103,193.25,193.21,19.87048893]
[1730997606193,0.30103,193.25,193.1,43.09476705]
[1730997606194,0.30103,193.25,193.24,19.87048893]
[1730997606389,2.9077,193.36,193.31,2.5837]
[1730997606794,19.5377,193.36,193.31,2.5837]
[1730997606998,23.6677,193.36,193.29,2.5839]
[1730997607689,19.87048893,193.32,193.18,19.87048893]
[1730997607889,2.54524169,193.31,193.19,8.37562131]
[1730997608095,2.54524169,193.31,193.19,3.66]
[1730997608390,2.5843,193.27,193.19,3.66]
[1730997608595,19.87048893,193.27,193.19,3.66]
[1730997608801,4.302,193.26,193.14,4.71821504]
[1730997608986,4.302,193.26,193.13,19.87048893]
[1730997609298,4.302,193.26,193.14,4.71852043]
[1730997609493,12.4180584,193.23,193.12,16.0780584]
[1730997609688,19.3044584,193.26,193.16,2.5856]
[1730997610090,16.7200584,193.26,193.16,2.5856]
[1730997610696,16.7200584,193.26,193.15,15.0038584]
[1730997611295,4.302,193.26,193.17,2.5855]
[1730997611596,4.302,193.26,193.14,19.86070469]
[1730997612598,4.302,193.26,193.15,4.72057154]
[1730997612903,4.302,193.26,193.14,19.86070469]
[1730997613099,4.302,193.26,193.18,2.5854]
[1730997613100,6.8865,193.26,193.18,2.5854]
[1730997613397,6.8865,193.26,193.14,19.86070469]
[1730997613594,6.8865,193.26,193.17,2.5856]
[1730997613794,2.5846,193.25,193.17,2.5856]
[1730997613993,24.16270469,193.26,193.16,2.5857]
[1730997614807,2.5848,193.23,193.16,2.5857]
[1730997615500,2.5848,193.24,193.17,2.5856]
[1730997616002,24.16270469,193.26,193.17,2.5856]
[1730997616505,24.16270469,193.26,193.18,2.5854]
[1730997616701,2.9006,193.26,193.18,19.86070469]
[1730997616897,2.5838,193.31,193.18,19.86070469]
[1730997617103,2.5838,193.31,193.21,19.86070469]
[1730997617104,2.8543,193.31,193.21,19.86070469]
[1730997617304,2.8543,193.31,193.21,23.52070469]
[1730997617598,2.8543,193.31,193.23,2.5848]
[1730997617806,2.8543,193.31,193.21,23.52070469]
[1730997618003,2.584,193.3,193.21,23.52070469]
[1730997618196,2.584,193.3,193.23,2.5848]
[1730997618608,2.584,193.3,193.21,23.52070469]
[1730997618808,2.8543,193.31,193.21,23.52070469]
[1730997618809,2.5843,193.28,193.21,3.66]
[1730997619408,5.4489059,193.31,193.15,19.86070469]
[1730997619611,19.86070469,193.29,193.15,19.86070469]
[1730997619808,19.86070469,193.29,193.17,2.5856]
[1730997620010,2.5846,193.25,193.12,19.86070469]
[1730997620206,1.4664,193.24,193.13,6.03588173]
[1730997620406,1.4664,193.24,193.12,19.86070469]
[1730997620407,1.4664,193.24,193.14,6.03588173]
[1730997620607,1.4664,193.24,193.12,19.86070469]
[1730997620816,1.4664,193.24,193.13,6.03730649]
[1730997621117,1.4664,193.24,193.12,19.86070469]
[1730997621311,1.4664,193.24,193.13,6.0415864]
[1730997621620,4.0511,193.24,193.14,6.0415864]
[1730997621920,4.0511,193.24,193.15,6.0415864]
[1730997622111,4.0511,193.24,193.12,19.86070469]
[1730997622316,4.0511,193.24,193.13,6.04170036]
[1730997622512,2.5848,193.23,193.16,2.5857]
[1730997622718,4.14,193.22,193.16,2.5857]
[1730997623407,4.14,193.22,193.17,2.5856]
[1730997624414,4.14,193.22,193.12,19.86070469]
[1730997624718,4.14,193.22,193.13,6.04070957]
[1730997624910,4.14,193.22,193.14,6.04070957]
[1730997625110,4.14,193.22,193.18,2.5854]
[1730997625312,4.14,193.22,193.17,3.64]
[1730997625507,4.14,193.22,193.18,19.86070469]
[1730997625913,4.14,193.22,193.21,2.5851]
[1730997626411,4.14,193.22,193.18,2.5854]
[1730997626612,4.14,193.22,193.07,27.52]
[1730997626613,14.39,193.22,193.14,3.64]
[1730997626820,14.39,193.22,193.13,3.64]
[1730997627417,14.39,193.22,193.15,2.5859]
[1730997627616,19.86070469,193.2,193.07,12.0]
[1730997627810,5.148,193.19,193.07,12.0]
[1730997628009,7.78364121,193.19,193.08,1.29328753]
[1730997628209,2.586,193.14,193.08,1.29328753]
[1730997628810,2.5859,193.16,193.09,4.7489419]
[1730997629023,5.148,193.19,193.1,4.7489419]
[1730997629218,2.54846768,193.18,193.11,4.7489419]
[1730997629415,2.586,193.15,193.07,12.0]
[1730997629810,2.5859,193.16,193.08,4.74978867]
[1730997630020,2.5859,193.16,193.09,4.74978867]
[1730997630220,2.5859,193.16,193.1,4.74978867]
[1730997630419,2.5859,193.16,193.11,4.74978867]
[1730997630617,2.5399314,193.18,193.07,12.0]
[1730997630820,2.5859,193.15,193.08,4.74969473]
[1730997631113,2.5859,193.15,193.09,4.74969473]
[1730997631319,2.5859,193.15,193.1,4.74969473]
[1730997631520,2.5861,193.14,193.11,4.74969473]
[1730997631722,22.48165624,193.17,193.07,12.0]
[1730997632023,22.48165624,193.17,193.08,4.7487248]
[1730997632218,22.48165624,193.17,193.09,4.7487248]
[1730997632419,19.86070469,193.17,193.1,4.7487248]
[1730997632727,5.148,193.19,193.11,4.7487248]
[1730997632927,3.64,193.18,193.07,12.0]
[1730997633120,3.64,193.18,193.09,2.5866]
[1730997633422,2.5857,193.17,193.1,4.74817043]
[1730997633623,2.5857,193.17,193.11,4.74817043]
[1730997633827,3.64,193.18,193.07,12.0]
[1730997634126,3.64,193.18,193.08,4.74788222]
[1730997634314,3.64,193.18,193.09,4.74788222]
[1730997634515,2.5858,193.16,193.1,4.74788222]
[1730997634811,2.5858,193.16,193.07,12.0]
[1730997635020,2.5858,193.16,193.08,4.74750721]
[1730997635324,2.5858,193.16,193.09,4.74750721]
[1730997635823,2.5858,193.16,193.1,7.33410721]
[1730997636025,2.5858,193.16,193.1,2.5866]
[1730997636225,2.5856,193.17,193.1,2.5866]
[1730997636421,2.5856,193.17,193.07,12.0]
[1730997636622,1.508,193.19,193.08,4.7468519]
[1730997636814,3.64,193.17,193.09,4.7468519]
[1730997637020,3.64,193.17,193.07,12.0]
[1730997637225,3.64,193.17,193.08,4.74632256]
[1730997637526,3.64,193.17,193.09,4.74632256]
[1730997637725,2.5855,193.18,193.12,2.5862]
[1730997637921,23.50070469,193.17,193.12,2.5862]
[1730997638324,6.28,193.16,193.12,2.5862]
[1730997641025,19.86070469,193.14,193.07,12.0]
[1730997641321,6.21,193.13,193.08,4.74624506]
[1730997641520,6.21,193.13,193.09,4.74624506]
[1730997641720,6.21,193.13,193.08,2.5867]
[1730997642219,6.21,193.13,193.09,4.74579736]
[1730997642422,6.21,193.13,193.07,12.0]
[1730997642728,6.21,193.13,193.08,4.74554986]
[1730997643026,6.21,193.13,193.09,4.74554986]
[1730997643232,6.21,193.13,193.07,12.0]
[1730997643417,4.14,193.12,193.07,12.0]
[1730997643627,4.14,193.12,193.1,2.5864]
[1730997643926,4.14,193.12,193.07,12.0]
[1730997644122,4.14,193.12,193.08,7.33266395]
[1730997644314,4.14,193.12,193.08,2.5867]
[1730997644519,4.14,193.12,193.09,4.74584596]
[1730997644723,4.14,193.12,193.08,2.5867]
[1730997644924,4.14,193.12,193.09,4.74583435]
[1730997645128,4.14,193.12,193.09,2.5867]
[1730997645727,4.14,193.12,193.07,12.0]
[1730997645728,12.41626869,193.11,193.07,12.0]
[1730997645930,12.41626869,193.11,193.08,4.74649816]
[1730997646131,12.41626869,193.11,193.07,12.0]
[1730997646427,5.5601,193.12,193.08,4.73391768]
[1730997646629,5.5601,193.12,193.07,12.0]
[1730997646827,5.5601,193.12,193.09,2.5866]
[1730997647221,5.5601,193.12,193.07,12.0]
[1730997647525,4.14,193.12,193.08,4.73289575]
[1730997647827,4.14,193.12,193.07,12.0]
[1730997647828,4.14,193.12,193.09,4.73289575]
[1730997648021,12.41626869,193.11,193.07,12.0]
[1730997648227,12.41626869,193.11,193.08,4.73450137]
[1730997648431,12.41626869,193.11,193.09,2.5866]
[1730997648723,4.14,193.12,193.07,12.0]
[1730997649132,4.14,193.12,193.09,2.5866]
[1730997649725,4.14,193.12,193.1,2.5864]
[1730997649928,4.14,193.12,193.07,12.0]
[1730997650133,4.14,193.12,193.08,4.73340448]
[1730997650330,4.14,193.12,193.09,4.73340448]
[1730997650529,4.14,193.12,193.1,2.5866]
[1730997651232,3.33,193.11,193.1,2.5866]
[1730997651431,3.33,193.11,193.1,7.31942456]
[1730997652327,3.33,193.11,193.1,2.5866]
[1730997653634,3.33,193.11,193.1,7.31936648]
[1730997655138,3.33,193.11,193.1,2.5866]
[1730997655139,12.26,193.11,193.1,2.5866]
[1730997655437,12.26,193.11,193.1,7.31885571]
[1730997656031,12.26,193.11,193.1,2.5866]
[1730997656233,12.26,193.11,193.1,7.31846677]
[1730997656432,12.26,193.11,193.1,4.73186677]
[1730997657435,12.26,193.11,193.07,12.0]
[1730997657637,12.26,193.11,193.08,4.73191171]
[1730997657943,12.26,193.11,193.09,4.73191171]
[1730997658141,16.4,193.11,193.1,4.73191171]
[1730997658337,16.4,193.11,193.07,12.0]
[1730997658538,12.41626869,193.15,193.07,12.0]
[1730997658539,47.50399416,193.47,193.1,15.52]
[1730997658835,12.41626869,193.39,193.27,12.41626869]
[1730997659031,12.41626869,193.39,193.28,3.64]
[1730997659229,1.422,193.4,193.32,12.41626869]